bitfinex/quotes_BTCUSD_20240605
["timestamp","ask_amount","ask_price","bid_price","bid_amount"]
[1717601508593,5e-05,71452.0,71434.0,0.0823]
[1717601508798,0.14446893,71452.0,71436.0,0.27997]
[1717601509003,0.14446893,71452.0,71445.0,0.139966]
[1717601509266,5e-05,71452.0,71437.0,0.37394113]
[1717601509408,5e-05,71452.0,71438.0,0.2855596]
[1717601509605,5e-05,71452.0,71439.0,0.29604113]
[1717601509926,5e-05,71452.0,71451.0,0.139956]
[1717601514062,0.0001,71452.0,71451.0,0.139956]
[1717601514236,0.0001,71452.0,71451.0,0.140902]
[1717601516167,0.0001,71452.0,71451.0,0.000946]
[1717601516545,0.0001,71452.0,71451.0,0.140902]
[1717601516958,0.00358409,71458.0,71457.0,0.139944]
[1717601517156,0.00358409,71458.0,71457.0,0.220444]
[1717601517357,0.00358409,71458.0,71457.0,0.378644]
[1717601518347,0.00358409,71458.0,71457.0,0.2387]
[1717601518916,0.00358409,71458.0,71454.0,0.13995]
[1717601519125,0.00358409,71458.0,71451.0,0.000946]
[1717601520339,0.00358409,71458.0,71457.0,0.139944]
[1717601520899,0.00358409,71458.0,71457.0,0.419832]
[1717601522041,0.00358409,71458.0,71457.0,0.139944]
[1717601522878,0.00358409,71458.0,71451.0,0.04208713]
[1717601523083,0.00358409,71458.0,71451.0,0.14208713]
[1717601523275,0.00358409,71458.0,71451.0,0.100946]
[1717601523433,0.00358409,71458.0,71457.0,0.139944]
[1717601523633,0.00363409,71458.0,71451.0,0.100946]
[1717601524081,0.00363409,71458.0,71457.0,0.139944]
[1717601524315,0.00363409,71458.0,71451.0,0.100946]
[1717601524316,0.14805302,71458.0,71453.0,0.139951]
[1717601524661,0.14805302,71458.0,71451.0,0.000946]
[1717601524662,0.14441893,71457.0,71451.0,0.000946]
[1717601525243,0.1692,71456.0,71451.0,0.000946]
[1717601525447,0.1514173,71455.0,71451.0,0.000946]
[1717601525775,0.14441893,71455.0,71451.0,0.000946]
[1717601525981,0.139954,71452.0,71451.0,0.000946]
[1717601526275,0.28437293,71452.0,71451.0,0.000946]
[1717601526996,0.52397293,71452.0,71451.0,0.000946]
[1717601527963,0.40701893,71452.0,71451.0,0.000946]
[1717601528165,0.38401893,71452.0,71451.0,0.000946]
[1717601528365,0.00363409,71458.0,71451.0,0.000946]
[1717601528593,0.14441893,71457.0,71451.0,0.000946]
[1717601529315,0.14441893,71457.0,71451.0,0.140902]
[1717601529556,0.00363409,71458.0,71451.0,0.140902]
[1717601529773,0.14805302,71458.0,71451.0,0.140902]
[1717601529987,0.14805302,71458.0,71452.0,0.217053]
[1717601531468,0.00363409,71458.0,71453.0,0.1515]
[1717601531671,0.00363409,71458.0,71457.0,0.139944]
[1717601532564,0.00363409,71458.0,71453.0,0.1515]
[1717601532770,0.00363409,71458.0,71452.0,0.0771]
[1717601532983,0.00702,71453.0,71452.0,0.0771]
[1717601533240,0.00702,71453.0,71452.0,0.217054]
[1717601533862,0.00702,71453.0,71451.0,0.000946]
[1717601534278,0.00699803,71452.0,71451.0,0.000946]
[1717601534500,0.15143893,71453.0,71451.0,0.000946]
[1717601534910,0.15141742,71452.0,71451.0,0.000946]
[1717601535123,0.14441893,71452.0,71451.0,0.000946]
[1717601535331,0.28437293,71452.0,71451.0,0.000946]
[1717601536340,0.1661,71446.0,71427.0,0.04118789]
[1717601536549,0.1661,71446.0,71421.0,0.47855734]
[1717601536550,0.14441893,71438.0,71421.0,0.47855734]
[1717601536774,0.14441893,71438.0,71429.0,0.139998]
[1717601536967,0.14441893,71438.0,71432.0,0.139991]
[1717601537404,0.14441893,71438.0,71433.0,0.162]
[1717601537713,0.1692,71451.0,71437.0,0.139983]
[1717601537933,0.14441893,71450.0,71433.0,0.23422824]
[1717601538147,0.00086,71459.0,71442.0,0.23455]
[1717601538567,0.00086,71459.0,71445.0,0.139967]
[1717601538768,0.00086,71459.0,71445.0,0.04118789]
[1717601538984,0.00086,71459.0,71448.0,0.139961]
[1717601540583,0.00707,71453.0,71448.0,0.139961]
[1717601541223,0.00707,71453.0,71446.0,0.139965]
[1717601543035,0.00707,71453.0,71449.0,0.139958]
[1717601543226,0.00707,71453.0,71451.0,0.139954]
[1717601543437,0.00707,71453.0,71452.0,0.34811554]
[1717601543686,0.00707,71453.0,71452.0,0.3668583]
[1717601545082,0.00707,71453.0,71452.0,0.46964895]
[1717601545255,0.00707,71453.0,71452.0,0.3668583]
[1717601547674,0.00707,71453.0,71452.0,0.3739283]
[1717601548037,0.00363409,71458.0,71457.0,0.159944]
[1717601548239,0.05989323,71460.0,71459.0,0.15994]
[1717601548475,0.0542226,71460.0,71459.0,0.66151723]
[1717601548837,0.0542226,71460.0,71459.0,0.78483087]
[1717601549192,0.0542226,71460.0,71459.0,0.66151723]
[1717601550401,0.05405417,71460.0,71459.0,0.66151723]
[1717601551296,0.05410417,71460.0,71459.0,0.64151723]
[1717601551630,0.05410417,71460.0,71459.0,0.66151723]
[1717601552684,0.05410417,71460.0,71459.0,0.64151723]
[1717601554496,0.05410417,71460.0,71459.0,0.4970983]
[1717601554913,0.05410417,71460.0,71459.0,0.30152898]
[1717601555102,0.05410417,71460.0,71459.0,0.20153149]
[1717601555428,0.05410417,71460.0,71459.0,0.13994]
[1717601556448,0.05410417,71460.0,71459.0,0.23994]
[1717601559408,0.05410417,71460.0,71459.0,0.1]
[1717601559617,0.05410417,71460.0,71451.0,0.237]
[1717601559832,0.05410417,71460.0,71453.0,0.139951]
[1717601560035,0.05410417,71460.0,71454.0,0.1]
[1717601561405,0.05410417,71460.0,71451.0,0.215455]
[1717601561628,0.1985231,71460.0,71452.0,0.1]
[1717601562295,0.1985231,71460.0,71443.0,0.06159149]
[1717601562296,0.2439,71452.0,71443.0,0.01710831]
[1717601562422,0.2439,71452.0,71442.0,0.001]
[1717601562423,0.2439,71443.0,71442.0,0.001]
[1717601563053,0.383871,71443.0,71442.0,0.001]
[1717601563497,0.38831893,71443.0,71442.0,0.001]
[1717601563724,0.52828993,71443.0,71442.0,0.001]
[1717601565472,0.38831893,71443.0,71442.0,0.001]
[1717601566353,0.26550417,71460.0,71442.0,0.001]
[1717601566354,0.1629,71455.0,71442.0,0.001]
[1717601566567,0.2514181,71454.0,71442.0,0.001]
[1717601566788,0.139965,71447.0,71442.0,0.001]
[1717601567007,0.15141866,71446.0,71442.0,0.001]
[1717601567247,0.13141866,71446.0,71442.0,0.001]
[1717601567923,0.1693,71443.0,71442.0,0.001]
[1717601568145,0.31371893,71443.0,71442.0,0.001]
[1717601569894,0.1629,71455.0,71442.0,0.001]
[1717601570168,0.1693,71451.0,71442.0,0.001]
[1717601570371,0.14441893,71450.0,71442.0,0.001]
[1717601570814,0.14441893,71450.0,71442.0,0.140971]
[1717601571245,0.1693,71451.0,71443.0,0.139971]
[1717601571467,0.31371893,71451.0,71443.0,0.139971]
[1717601572126,5e-05,71450.0,71443.0,0.139971]
[1717601572598,5e-05,71450.0,71442.0,0.001]
[1717601572799,0.00704896,71450.0,71442.0,0.001]
[1717601573238,5e-05,71450.0,71442.0,0.001]
[1717601574304,5e-05,71450.0,71442.0,0.140973]
[1717601574507,5e-05,71450.0,71443.0,0.139971]
[1717601574508,0.14441893,71449.0,71443.0,0.139971]
[1717601574724,0.14441893,71449.0,71442.0,0.001]
[1717601574942,0.14441893,71449.0,71442.0,0.140972]
[1717601576706,0.14441893,71449.0,71443.0,0.07253452]
[1717601576918,0.1693,71445.0,71443.0,0.07253452]
[1717601578516,0.16935,71445.0,71444.0,0.07253946]
[1717601578856,0.16935,71445.0,71443.0,0.07253946]
[1717601579068,0.16935,71445.0,71444.0,0.07253946]
[1717601579278,0.31376893,71445.0,71443.0,0.07253946]
[1717601579479,0.16935,71445.0,71443.0,0.07253946]
[1717601579683,0.16935,71445.0,71444.0,0.139969]
[1717601579885,0.16935,71445.0,71444.0,0.07253946]
[1717601580079,0.16935,71445.0,71443.0,0.07253946]
[1717601580980,0.16810985,71445.0,71443.0,0.07253946]
[1717601581167,0.16810985,71445.0,71444.0,0.139969]
[1717601581344,0.31252878,71445.0,71444.0,0.21250846]
[1717601582333,5e-05,71445.0,71444.0,0.21250846]
[1717601584204,5e-05,71445.0,71444.0,0.139969]
[1717601584367,5e-05,71445.0,71444.0,0.21250545]
[1717601588576,5e-05,71445.0,71444.0,0.21249596]
[1717601592431,5e-05,71445.0,71444.0,0.07252696]
[1717601592984,0.14446893,71445.0,71444.0,0.07252696]
[1717601593183,0.14446893,71445.0,71444.0,0.21249596]
[1717601595703,0.14446893,71445.0,71444.0,0.21250686]
[1717601599444,0.14446893,71445.0,71444.0,0.07253786]
[1717601599665,0.14446893,71445.0,71444.0,0.07253787]
[1717601601709,5e-05,71445.0,71444.0,0.21250687]
[1717601602112,5e-05,71445.0,71444.0,0.07253787]
[1717601602300,5e-05,71445.0,71444.0,0.09440143]
[1717601603714,5e-05,71445.0,71444.0,0.07253787]
[1717601604593,5e-05,71445.0,71444.0,0.21250687]
[1717601605209,0.14446893,71445.0,71444.0,0.07253787]
[1717601607909,5e-05,71445.0,71444.0,0.07253787]
[1717601608109,5e-05,71445.0,71444.0,0.394262]
[1717601608442,5e-05,71445.0,71444.0,0.3117682]
[1717601610552,5e-05,71445.0,71444.0,0.5917072]
[1717601610965,5e-05,71445.0,71444.0,1.1274462]
[1717601611427,5e-05,71445.0,71444.0,1.16404331]
[1717601612006,5e-05,71445.0,71444.0,1.23627155]
[1717601612759,5e-05,71445.0,71444.0,1.21721755]
[1717601613189,0.00091,71445.0,71444.0,1.23721755]
[1717601613668,0.00091,71445.0,71444.0,1.21721755]
[1717601613875,0.00091,71445.0,71444.0,1.23721755]
[1717601614078,0.00091,71445.0,71444.0,1.36112887]
[1717601614478,0.00091,71445.0,71444.0,1.26890063]
[1717601614726,0.00091,71445.0,71444.0,1.14498931]
[1717601615104,0.00091,71445.0,71444.0,0.86505031]
[1717601615668,0.00091,71445.0,71444.0,0.96834509]
[1717601616091,0.00091,71445.0,71444.0,0.73514509]
[1717601617260,0.00091,71445.0,71444.0,1.01508409]
[1717601617491,0.00091,71445.0,71444.0,0.91178931]
[1717601617706,0.00091,71445.0,71444.0,1.16118931]
[1717601617938,0.00091,71445.0,71444.0,1.14118931]
[1717601618141,0.00091,71445.0,71444.0,0.86125031]
[1717601618589,0.00091,71445.0,71444.0,0.58131131]
[1717601619027,0.00091,71445.0,71444.0,0.68460352]
[1717601619246,0.00091,71445.0,71444.0,0.96454252]
[1717601619465,0.00091,71445.0,71444.0,0.73514252]
[1717601620133,0.00096,71445.0,71444.0,0.33860641]
[1717601620354,0.00096,71445.0,71444.0,0.2353142]
[1717601620854,0.00096,71445.0,71444.0,0.59788442]
[1717601621076,0.00096,71445.0,71444.0,0.31794542]
[1717601621293,0.00096,71445.0,71444.0,0.2353142]
[1717601621477,0.00096,71445.0,71444.0,0.31794542]
[1717601622400,0.00096,71445.0,71444.0,0.59788442]
[1717601623026,0.00096,71445.0,71444.0,0.31794542]
[1717601624161,0.00096,71445.0,71444.0,0.31795803]
[1717601624823,0.00096,71445.0,71444.0,0.2353142]
[1717601625291,0.00096,71445.0,71444.0,0.31795803]
[1717601627976,0.00096,71445.0,71444.0,0.2353142]
[1717601628919,0.00096,71445.0,71444.0,0.31798408]
[1717601629121,0.00096,71445.0,71444.0,0.5152532]
[1717601631368,0.00096,71445.0,71444.0,0.7951922]
[1717601631573,0.00096,71445.0,71444.0,0.9770922]
[1717601631768,0.00096,71445.0,71444.0,1.0770922]
[1717601631898,0.00096,71445.0,71444.0,1.28180686]
[1717601633524,0.00096,71445.0,71444.0,1.1377922]
[1717601635094,0.00096,71445.0,71444.0,1.13777594]
[1717601638298,0.00096,71445.0,71444.0,1.15777594]
[1717601638525,0.00096,71445.0,71444.0,1.13777594]
[1717601638645,0.00096,71445.0,71444.0,1.15777594]
[1717601638863,0.00096,71445.0,71444.0,1.13777594]
[1717601641414,0.00096,71445.0,71444.0,0.85783694]
[1717601641624,0.00096,71445.0,71444.0,0.89517594]
[1717601641989,0.00096,71445.0,71444.0,0.61523694]
[1717601642168,0.00096,71445.0,71444.0,0.89517594]
[1717601643899,0.00096,71445.0,71444.0,0.91517594]
[1717601644104,0.00096,71445.0,71444.0,0.89517594]
[1717601645512,0.00096,71445.0,71444.0,0.91517594]
[1717601645989,0.00096,71445.0,71444.0,1.01911619]
[1717601646435,0.00096,71445.0,71444.0,0.89517594]
[1717601647154,0.00096,71445.0,71444.0,1.01905148]
[1717601647365,0.00096,71445.0,71444.0,1.36772311]
[1717601647579,5e-05,71450.0,71449.0,0.955697]
[1717601647790,5e-05,71450.0,71449.0,1.17958049]
[1717601647959,5e-05,71450.0,71449.0,1.61300447]
[1717601648208,0.05410417,71460.0,71459.0,0.41982]
[1717601648434,0.05410417,71460.0,71459.0,0.85740294]
[1717601648639,0.05410417,71460.0,71459.0,1.13728294]
[1717601650842,0.05410417,71460.0,71459.0,0.89408294]
[1717601651382,0.1985231,71460.0,71459.0,0.23432294]
[1717601651583,0.2792231,71460.0,71459.0,0.23432294]
[1717601651784,0.2792231,71460.0,71459.0,0.07251991]
[1717601652009,0.4367231,71460.0,71459.0,0.07251991]
[1717601654648,0.4367231,71460.0,71459.0,0.21245991]
[1717601654853,0.05410417,71460.0,71459.0,0.21245991]
[1717601655074,0.05410417,71460.0,71459.0,0.55423501]
[1717601655280,0.05410417,71460.0,71459.0,0.51419634]
[1717601655482,0.05410417,71460.0,71459.0,0.61735485]
[1717601655764,0.05410417,71460.0,71459.0,0.51419634]
[1717601656100,0.05410417,71460.0,71459.0,1.13317634]
[1717601657107,0.05410417,71460.0,71459.0,1.15317634]
[1717601657705,0.05410417,71460.0,71459.0,1.25695558]
[1717601658111,0.05410417,71460.0,71459.0,1.13317634]
[1717601659612,0.05415417,71460.0,71459.0,1.15317634]
[1717601659998,0.05415417,71460.0,71459.0,1.13317634]
[1717601660633,0.05415417,71460.0,71459.0,1.1495771]
[1717601661082,0.05415417,71460.0,71459.0,1.1695771]
[1717601661480,0.05415417,71460.0,71459.0,1.4494571]
[1717601662109,0.05415417,71460.0,71459.0,1.4294571]
[1717601663723,0.05415417,71460.0,71459.0,1.42943952]
[1717601667922,0.05415417,71460.0,71459.0,0.91045952]
[1717601668174,0.05415417,71460.0,71459.0,0.83795719]
[1717601668287,0.05415417,71460.0,71459.0,0.91046522]
[1717601669364,0.05415417,71460.0,71459.0,0.99289055]
[1717601670249,0.05415417,71460.0,71459.0,0.92038252]
[1717601670450,0.05415417,71460.0,71459.0,0.99289033]
[1717601670658,0.05415417,71460.0,71459.0,1.158665]
[1717601670863,0.05030752,71460.0,71459.0,1.158665]
[1717601671079,0.05030752,71460.0,71459.0,1.438545]
[1717601672567,0.05030752,71460.0,71459.0,1.58296393]
[1717601674159,0.04609781,71460.0,71459.0,1.58296393]
[1717601674377,0.03019422,71460.0,71459.0,1.58296393]
[1717601675019,0.03019422,71460.0,71459.0,1.58295585]
[1717601676808,0.01519422,71460.0,71459.0,1.70659385]
[1717601677255,0.004,71479.0,71468.0,0.699612]
[1717601677499,0.004,71479.0,71468.0,0.79396816]
[1717601679204,0.004,71479.0,71468.0,0.81057958]
[1717601679850,0.00174162,71469.0,71468.0,0.81057958]
[1717601680642,0.00260162,71469.0,71468.0,0.53073458]
[1717601680842,0.00260162,71469.0,71468.0,0.59253157]
[1717601681047,0.00260162,71469.0,71468.0,0.53073458]
[1717601681264,0.00260162,71469.0,71468.0,0.57193735]
[1717601681664,0.00260162,71469.0,71468.0,0.53073458]
[1717601682108,0.00265162,71469.0,71468.0,0.53073853]
[1717601682609,0.00969792,71469.0,71468.0,0.55532988]
[1717601682914,0.00270162,71469.0,71468.0,0.51412711]
[1717601683123,0.14717055,71469.0,71468.0,0.23428211]
[1717601683335,0.31147055,71469.0,71468.0,0.23428211]
[1717601683508,0.31152055,71469.0,71468.0,0.23428211]
[1717601683784,0.31152055,71469.0,71468.0,0.21242568]
[1717601684967,0.55852055,71469.0,71468.0,0.07250368]
[1717601688061,0.71844055,71469.0,71468.0,0.06950368]
[1717601688259,0.2359,71466.0,71457.0,0.139944]
[1717601688471,0.1579,71464.0,71457.0,0.139944]
[1717601688697,0.14441893,71463.0,71457.0,0.139944]
[1717601693133,0.0757,71462.0,71457.0,0.139944]
[1717601693341,0.14441893,71461.0,71457.0,0.139944]
[1717601694747,0.1693,71458.0,71450.0,0.000946]
[1717601694962,0.38921751,71457.0,71450.0,0.000946]
[1717601696326,0.00699857,71456.0,71450.0,0.000946]
[1717601696564,0.1559,71454.0,71450.0,0.000946]
[1717601696766,0.15141777,71453.0,71450.0,0.000946]
[1717601698782,0.077,71452.0,71450.0,0.000946]
[1717601698987,0.14441893,71451.0,71450.0,0.000946]
[1717601702061,0.1501,71464.0,71450.0,0.000946]
[1717601702271,0.0792,71467.0,71459.0,0.07222824]
[1717601702478,0.14441893,71467.0,71460.0,0.2334]
[1717601702678,0.00280162,71469.0,71468.0,0.139922]
[1717601703051,0.00280162,71469.0,71468.0,0.773167]
[1717601703260,0.00280162,71469.0,71468.0,1.053012]
[1717601703459,0.00280162,71469.0,71468.0,1.17804049]
[1717601703664,0.00280162,71469.0,71468.0,1.07486171]
[1717601704279,0.00280162,71469.0,71468.0,1.05486171]
[1717601706180,0.00280162,71469.0,71468.0,1.07486171]
[1717601706385,0.00280162,71469.0,71468.0,1.05486171]
[1717601706887,0.00280162,71469.0,71468.0,1.07486171]
[1717601707288,0.00280162,71469.0,71468.0,1.15768006]
[1717601707493,0.00280162,71469.0,71468.0,1.17768006]
[1717601707689,0.00280162,71469.0,71468.0,1.15768006]
[1717601708275,0.00280162,71469.0,71468.0,1.13710617]
[1717601708479,0.00280162,71469.0,71468.0,1.15408264]
[1717601708680,0.00280162,71469.0,71468.0,1.04998847]
[1717601709119,0.00280162,71469.0,71468.0,1.1116778]
[1717601709546,0.00280162,71469.0,71468.0,1.13352829]
[1717601709762,0.00280162,71469.0,71468.0,1.07183896]
[1717601710248,0.00280162,71469.0,71468.0,1.1335189]
[1717601710447,0.00280162,71469.0,71468.0,1.07183896]
[1717601711297,0.00280162,71469.0,71468.0,1.15406468]
[1717601711715,0.00280162,71469.0,71468.0,1.07183896]
[1717601712128,0.00280162,71469.0,71468.0,1.15406159]
[1717601712333,0.00280162,71469.0,71468.0,1.07183896]
[1717601712858,0.00280162,71469.0,71468.0,1.04998847]
[1717601713503,0.00280162,71469.0,71468.0,1.10595847]
[1717601714507,0.00280162,71469.0,71468.0,1.12595847]
[1717601715026,0.004,71479.0,71478.0,0.719515]
[1717601715225,0.002,71489.0,71488.0,0.41965]
[1717601715462,0.002,71489.0,71488.0,0.949217]
[1717601715669,0.002,71489.0,71488.0,1.07106034]
[1717601716283,0.002,71489.0,71488.0,1.09027036]
[1717601716848,0.002,71489.0,71488.0,1.07027036]
[1717601717085,0.002,71489.0,71488.0,1.049217]
[1717601717261,0.002,71489.0,71488.0,1.35082633]
[1717601718015,0.002,71489.0,71488.0,1.43287561]
[1717601718211,0.002,71489.0,71488.0,1.41236639]
[1717601718423,0.002,71489.0,71488.0,1.328984]
[1717601718625,0.00205,71489.0,71488.0,1.328984]
[1717601719055,0.00205,71489.0,71488.0,1.34603054]
[1717601719732,0.00205,71489.0,71488.0,1.36787168]
[1717601719990,0.00205,71489.0,71488.0,1.40751746]
[1717601720194,0.00205,71489.0,71488.0,1.38702592]
[1717601720615,0.00205,71489.0,71488.0,1.34603054]
[1717601721202,0.00205,71489.0,71488.0,1.38699402]
[1717601721419,0.00205,71489.0,71488.0,1.34603054]
[1717601722892,0.00205,71489.0,71488.0,1.32603054]
[1717601723137,0.00205,71489.0,71488.0,1.34603054]
[1717601725569,0.00205,71489.0,71488.0,1.32603054]
[1717601726514,0.00205,71489.0,71488.0,1.49044947]
[1717601727571,0.00205,71489.0,71488.0,1.47044947]
[1717601728939,0.00205,71489.0,71488.0,0.55811424]
[1717601729158,0.24025,71489.0,71488.0,0.1613007]
[1717601729812,0.00205,71489.0,71488.0,0.4410677]
[1717601730224,0.00205,71489.0,71488.0,0.7408347]
[1717601730425,0.00205,71489.0,71488.0,0.7206017]
[1717601730888,0.00205,71489.0,71488.0,0.7959017]
[1717601731103,0.00205,71489.0,71488.0,1.2166017]
[1717601732118,0.004,71499.0,71498.0,0.139864]
[1717601732908,0.004,71499.0,71498.0,0.419592]
[1717601733124,0.004,71499.0,71498.0,0.139864]
[1717601736445,0.00405,71499.0,71498.0,0.139864]
[1717601736648,0.00405,71499.0,71498.0,0.159864]
[1717601737191,0.00405,71499.0,71498.0,0.1570569]
[1717601738361,0.00405,71499.0,71498.0,0.4367849]
[1717601738556,0.00405,71499.0,71498.0,0.47862692]
[1717601738980,0.00405,71499.0,71498.0,0.75835492]
[1717601739200,0.00405,71499.0,71498.0,0.85835492]
[1717601740429,0.00405,71499.0,71498.0,0.83835492]
[1717601740588,0.00405,71499.0,71498.0,0.85835492]
[1717601741827,0.00405,71499.0,71498.0,1.05835492]
[1717601742033,0.00405,71499.0,71498.0,1.56848292]
[1717601742658,0.00405,71499.0,71498.0,1.60940144]
[1717601742918,0.00405,71499.0,71498.0,1.56848292]
[1717601743252,0.00405,71499.0,71498.0,1.77432623]
[1717601743880,0.00864,71517.0,71508.0,1.229308]
[1717601744087,0.00864,71517.0,71516.0,0.699142]
[1717601744284,0.00864,71517.0,71516.0,0.82097846]
[1717601744824,0.00864,71517.0,71516.0,0.799142]
[1717601745182,0.00864,71517.0,71516.0,0.819142]
[1717601745794,0.00864,71517.0,71516.0,0.8409788]
[1717601746421,0.00864,71517.0,71516.0,1.3206358]
[1717601746634,0.00864,71517.0,71516.0,1.16144719]
[1717601747298,0.00864,71517.0,71516.0,1.12047897]
[1717601747473,0.00964,71517.0,71516.0,1.12847897]
[1717601747875,0.00964,71517.0,71516.0,1.8689979]
[1717601747876,0.00864,71517.0,71516.0,1.8689979]
[1717601748085,0.00864,71517.0,71516.0,1.93042228]
[1717601748324,0.00864,71517.0,71516.0,1.98846167]
[1717601748710,0.00964,71517.0,71516.0,1.89408769]
[1717601749278,0.00964,71517.0,71516.0,1.93475222]
[1717601749486,0.00864,71517.0,71516.0,1.92675222]
[1717601749635,0.004,71519.0,71518.0,1.198771]
[1717601749851,0.00864,71525.0,71522.0,0.639451]
[1717601750048,1e-08,71523.0,71522.0,1.60314073]
[1717601750252,1e-08,71523.0,71522.0,2.02343926]
[1717601750874,1e-08,71523.0,71522.0,2.17277473]
[1717601751392,0.00864,71532.0,71528.0,1.198635]
[1717601751546,0.00864,71532.0,71528.0,1.298635]
[1717601751750,0.00864,71532.0,71528.0,1.3204718]
[1717601751954,0.00864,71532.0,71528.0,1.46489073]
[1717601752185,0.00864,71532.0,71528.0,1.71339073]
[1717601752385,0.00864,71532.0,71528.0,2.02335526]
[1717601752586,0.00864,71532.0,71528.0,2.12586435]
[1717601752889,0.00864,71532.0,71528.0,2.02586435]
[1717601753272,0.00864,71532.0,71528.0,2.02335526]
[1717601753692,0.00864,71532.0,71528.0,2.00529635]
[1717601753867,0.00864,71532.0,71531.0,1.19749958]
[1717601754067,0.00864,71532.0,71531.0,1.42145563]
[1717601754277,0.00864,71532.0,71531.0,1.36000091]
[1717601755080,0.00864,71532.0,71531.0,0.86149833]
[1717601755285,0.00864,71532.0,71531.0,0.798997]
[1717601756954,0.00864,71532.0,71531.0,0.239799]
[1717601757160,0.00964,71532.0,71531.0,0.247799]
[1717601757796,0.00864,71532.0,71531.0,0.519398]
[1717601757974,0.00864,71532.0,71531.0,0.239799]
[1717601758174,0.00864,71532.0,71531.0,0.519398]
[1717601758847,0.00864,71532.0,71531.0,0.53830158]
[1717601759055,0.00864,71532.0,71531.0,0.81790058]
[1717601759185,0.00864,71532.0,71531.0,1.05886259]
[1717601759653,0.00864,71532.0,71531.0,1.08070679]
[1717601759957,0.00864,71532.0,71531.0,1.03972975]
[1717601760148,0.00864,71532.0,71531.0,0.83972975]
[1717601760561,0.00864,71532.0,71531.0,0.90118447]
[1717601762989,5e-05,71536.0,71535.0,1.92607446]
[1717601763187,0.002,71549.0,71535.0,1.92607446]
[1717601763188,0.002,71549.0,71548.0,0.71773358]
[1717601763386,0.002,71549.0,71548.0,0.79883]
[1717601764317,0.002,71549.0,71548.0,0.81773358]
[1717601764513,0.002,71549.0,71548.0,0.55891547]
[1717601764761,0.002,71549.0,71548.0,0.519298]
[1717601765529,0.002,71549.0,71548.0,0.81773358]
[1717601765730,0.002,71549.0,71548.0,0.85735105]
[1717601765946,0.00205,71549.0,71548.0,1.09726558]
[1717601766147,0.00205,71549.0,71548.0,1.65353022]
[1717601766376,0.002,71569.0,71567.0,0.419187]
[1717601766377,0.1618,71568.0,71567.0,0.419187]
[1717601766623,0.59516945,71568.0,71567.0,0.419187]
[1717601766774,0.002,71569.0,71568.0,0.419181]
[1717601766973,0.002,71569.0,71568.0,0.71753858]
[1717601767270,0.002,71569.0,71568.0,0.81753858]
[1717601767676,0.002,71569.0,71568.0,1.01753858]
[1717601767820,0.002,71569.0,71568.0,1.88946576]
[1717601768211,0.002,71569.0,71568.0,1.98946576]
[1717601768428,0.002,71569.0,71568.0,1.24071176]
[1717601768621,0.002,71569.0,71568.0,1.07738925]
[1717601768823,0.002,71569.0,71568.0,1.0942787]
[1717601769022,0.00205,71569.0,71568.0,1.0942787]
[1717601769223,0.00205,71569.0,71568.0,0.94985977]
[1717601769472,0.00205,71569.0,71568.0,0.95685977]
[1717601770092,0.00205,71569.0,71568.0,0.94985977]
[1717601770533,0.00205,71569.0,71568.0,0.57330219]
[1717601770723,0.00314642,71569.0,71568.0,0.25679394]
[1717601770924,0.16389642,71569.0,71568.0,0.139727]
[1717601771208,0.24609642,71569.0,71568.0,0.139727]
[1717601771415,0.245,71569.0,71568.0,0.139727]
[1717601771651,0.00215,71569.0,71568.0,0.419181]
[1717601771876,0.00215,71569.0,71568.0,0.47555549]
[1717601772066,0.0002,71578.0,71577.0,0.15861258]
[1717601772308,0.0002,71578.0,71577.0,0.81740058]
[1717601772505,0.0002,71578.0,71577.0,1.13107149]
[1717601772706,0.0002,71578.0,71577.0,1.28827149]
[1717601773288,0.0002,71578.0,71577.0,1.45757149]
[1717601773525,0.0002,71578.0,71577.0,1.88140942]
[1717601774159,0.002,71589.0,71588.0,1.10729358]
[1717601774370,0.002,71589.0,71588.0,1.86271251]
[1717601774579,0.002,71589.0,71588.0,1.90721741]
[1717601774816,0.002,71589.0,71588.0,1.32784141]
[1717601775021,0.002,71589.0,71588.0,1.1645689]
[1717601775226,0.002,71589.0,71588.0,0.77242248]
[1717601775435,0.002,71589.0,71588.0,1.19621741]
[1717601775640,0.002,71589.0,71588.0,1.66551741]
[1717601775849,0.002,71589.0,71588.0,1.96789341]
[1717601776271,0.001,71600.0,71588.0,1.96789341]
[1717601776272,0.001,71600.0,71590.0,1.01727358]
[1717601776470,0.001,71600.0,71590.0,1.28469251]
[1717601776683,0.001,71600.0,71590.0,1.17720267]
[1717601776884,0.001,71600.0,71590.0,1.09783467]
[1717601777034,0.001,71600.0,71599.0,0.43785258]
[1717601777235,0.001,71600.0,71599.0,1.26160451]
[1717601777452,0.001,71600.0,71599.0,1.33081467]
[1717601778018,0.001,71600.0,71599.0,1.56531467]
[1717601778526,0.001,71600.0,71599.0,1.84464767]
[1717601778733,0.001,71600.0,71599.0,1.55547257]
[1717601778981,0.001,71600.0,71599.0,1.87432615]
[1717601779198,0.001,71600.0,71599.0,1.68935859]
[1717601779406,0.001,71600.0,71599.0,2.02461467]
[1717601779575,0.002,71600.0,71599.0,1.96395603]
[1717601779787,0.002,71600.0,71599.0,2.38555844]
[1717601780355,0.002,71600.0,71599.0,2.07388408]
[1717601780551,0.00105,71600.0,71599.0,2.02067392]
[1717601780913,0.00105,71600.0,71599.0,2.09045785]
[1717601781128,0.0011,71600.0,71599.0,2.33759707]
[1717601781470,0.0011,71600.0,71599.0,2.36979085]
[1717601781628,0.00115,71600.0,71599.0,2.09045785]
[1717601781827,0.00115,71600.0,71599.0,1.63710427]
[1717601782128,0.0012,71600.0,71599.0,1.47512401]
[1717601782333,0.0012,71600.0,71599.0,1.67512401]
[1717601782539,0.00125,71600.0,71599.0,1.67512401]
[1717601782812,0.00125,71600.0,71599.0,1.91686686]
[1717601783082,0.00125,71600.0,71599.0,2.05964468]
[1717601783399,0.00225,71600.0,71599.0,2.29359697]
[1717601783606,0.00225,71600.0,71599.0,1.61444687]
[1717601783820,0.00225,71600.0,71599.0,1.80674687]
[1717601784343,0.00225,71600.0,71599.0,1.58789329]
[1717601784564,0.00225,71600.0,71599.0,2.08607987]
[1717601784823,0.00225,71600.0,71599.0,1.80674687]